fUSD/lending_fUSD_20250127
["ID","MTS","AMOUNT","RATE_DAILY","PERIOD"]
[350630739,1738007505268,-564.28,0.00010958,2]
[350630740,1738007505283,-500.0,0.00010958,2]
[350630741,1738007505298,-500.0,0.00010958,2]
[350630742,1738007505314,-597.92,0.00010958,2]
[350630743,1738007505329,-505.14056078,0.00010958,2]
[350630744,1738007505345,-633.19,0.00010958,2]
[350630745,1738007505360,-564.28,0.00010958,2]
[350630746,1738007505374,-500.0,0.00010958,2]
[350630747,1738007505390,-500.0,0.00010958,2]
[350630748,1738007505406,-500.0,0.00010958,2]
[350630749,1738007505421,-597.92,0.00010958,2]
[350630750,1738007505436,-564.28,0.00010958,2]
[350630751,1738007505452,-633.19,0.00010958,2]
[350630752,1738007505467,-500.0,0.00010958,2]
[350630753,1738007505482,-500.0,0.00010958,2]
[350630754,1738007505495,-500.0,0.00010958,2]
[350630755,1738007505510,-597.92,0.00010958,2]
[350630756,1738007505525,-564.28,0.00010958,2]
[350630757,1738007505539,-500.0,0.00010958,2]
[350630758,1738007505553,-633.19,0.00010958,2]
[350630759,1738007505567,-500.0,0.00010958,2]
[350630760,1738007505581,-500.0,0.00010958,2]
[350630761,1738007505595,-500.0,0.00010958,2]
[350630762,1738007505610,-597.92,0.00010958,2]
[350630763,1738007505624,-500.0,0.00010958,2]
[350630764,1738007505640,-564.28,0.00010958,2]
[350630765,1738007505653,-500.0,0.00010958,2]
[350630766,1738007505668,-633.31861561,0.00010958,2]
[350630767,1738007505682,-500.0,0.00010958,2]
[350630768,1738007505697,-500.0,0.00010958,2]
[350630769,1738007505711,-500.0,0.00010958,2]
[350630770,1738007505726,-500.0,0.00010958,2]
[350630771,1738007505740,-500.0,0.00010958,2]
[350630772,1738007505754,-500.0,0.00010958,2]
[350630773,1738007505769,-500.0,0.00010958,2]
[350630774,1738007505784,-218.70262703,0.00010958,2]
[350630775,1738007505798,-564.28,0.00010958,2]
[350630776,1738007505813,-500.0,0.00010958,2]
[350630777,1738007505828,-500.0,0.00010958,2]
[350630778,1738007505843,-500.0,0.00010958,2]
[350630779,1738007505856,-500.0,0.00010958,2]
[350630780,1738007505871,-564.28,0.00010958,2]
[350630781,1738007505885,-500.0,0.00010958,2]
[350630782,1738007505900,-500.0,0.00010958,2]
[350630783,1738007505914,-500.0,0.00010958,2]
[350630784,1738007505928,-500.0,0.00010958,2]
[350630785,1738007505943,-564.28,0.00010958,2]
[350630786,1738007505958,-500.0,0.00010958,2]
[350630787,1738007505972,-500.0,0.00010958,2]
[350630788,1738007505986,-500.0,0.00010958,2]
[350630789,1738007506000,-500.0,0.00010958,2]
[350630790,1738007506014,-564.28,0.00010958,2]
[350630791,1738007506028,-500.0,0.00010958,2]
[350630792,1738007506043,-500.0,0.00010958,2]
[350630793,1738007506057,-500.0,0.00010958,2]
[350630794,1738007506072,-564.28,0.00010958,2]
[350630795,1738007506089,-465.06754779,0.00010958,2]
[350630796,1738007506104,-500.0,0.00010958,2]
[350630797,1738007506124,-500.0,0.00010958,2]
[350630798,1738007506138,-507.54805829,0.00010958,2]
[350630799,1738007506154,-500.0,0.00010958,2]
[350630800,1738007506168,-564.28,0.00010958,2]
[350630801,1738007506183,-500.0,0.00010958,2]
[350630802,1738007506197,-500.0,0.00010958,2]
[350630803,1738007506213,-500.0,0.00010958,2]
[350630804,1738007506227,-500.0,0.00010958,2]
[350630805,1738007506242,-429.78773159,0.00010958,2]
[350630806,1738007506257,-564.28,0.00010958,2]
[350630807,1738007506271,-500.0,0.00010958,2]
[350630808,1738007506549,-500.0,0.00010958,2]
[350630809,1738007506560,-500.0,0.00010958,2]
[350630810,1738007506570,-500.0,0.00010958,2]
[350630811,1738007506580,-564.28,0.00010958,2]
[350630812,1738007506589,-500.0,0.00010958,2]
[350630813,1738007506599,-500.0,0.00010958,2]
[350630814,1738007506608,-500.0,0.00010958,2]
[350630815,1738007506618,-500.0,0.00010958,2]
[350630816,1738007506627,-500.0,0.00010958,2]
[350630817,1738007506637,-564.28,0.00010958,2]
[350630818,1738007506647,-500.0,0.00010958,2]
[350630819,1738007506656,-500.0,0.00010958,2]
[350630820,1738007506665,-500.0,0.00010958,2]
[350630821,1738007506674,-500.0,0.00010958,2]
[350630822,1738007506683,-500.0,0.00010958,2]
[350630823,1738007506693,-500.0,0.00010958,2]
[350630824,1738007506702,-564.28,0.00010958,2]
[350630825,1738007506711,-500.0,0.00010958,2]
[350630826,1738007506721,-500.0,0.00010958,2]
[350630827,1738007506730,-500.0,0.00010958,2]
[350630828,1738007506739,-500.0,0.00010958,2]
[350630829,1738007506748,-500.0,0.00010958,2]
[350630830,1738007506758,-500.0,0.00010958,2]
[350630831,1738007506768,-500.0,0.00010958,2]
[350630832,1738007506777,-500.0,0.00010958,2]
[350630833,1738007506786,-564.28,0.00010958,2]
[350630834,1738007506796,-500.0,0.00010958,2]
[350630835,1738007506805,-500.0,0.00010958,2]
[350630836,1738007506814,-500.0,0.00010958,2]
[350630837,1738007506823,-500.0,0.00010958,2]
[350630838,1738007506832,-619.07152074,0.00010958,2]
[350630839,1738007506842,-500.0,0.00010958,2]
[350630840,1738007506851,-500.0,0.00010958,2]
[350630841,1738007506861,-500.0,0.00010958,2]
[350630842,1738007506871,-564.28,0.00010958,2]
[350630843,1738007506880,-299.71462804,0.00010958,2]
[350630844,1738007506890,-500.0,0.00010958,2]
[350630845,1738007506899,-500.0,0.00010958,2]
[350630846,1738007506909,-500.0,0.00010958,2]
[350630847,1738007506918,-500.0,0.00010958,2]
[350630848,1738007506928,-500.0,0.00010958,2]
[350630849,1738007506938,-500.0,0.00010958,2]
[350630850,1738007506948,-500.0,0.00010958,2]
[350630851,1738007506958,-500.0,0.00010958,2]
[350630852,1738007506968,-564.28,0.00010958,2]
[350630853,1738007506979,-500.0,0.00010958,2]
[350630854,1738007506989,-500.0,0.00010958,2]
[350630855,1738007506999,-500.0,0.00010958,2]
[350630856,1738007507009,-500.0,0.00010958,2]
[350630857,1738007507019,-500.0,0.00010958,2]
[350630858,1738007507029,-500.0,0.00010958,2]
[350630859,1738007507040,-500.0,0.00010958,2]
[350630860,1738007507050,-500.0,0.00010958,2]
[350630861,1738007507060,-564.45,0.00010958,2]
[350630862,1738007507071,-500.0,0.00010958,2]
[350630863,1738007507081,-500.0,0.00010958,2]
[350630864,1738007507091,-500.0,0.00010958,2]
[350630865,1738007507101,-500.0,0.00010958,2]
[350630866,1738007507113,-500.0,0.00010958,2]
[350630867,1738007507124,-500.0,0.00010958,2]
[350630868,1738007507134,-500.0,0.00010958,2]
[350630869,1738007507144,-561.48416832,0.00010958,2]
[350630870,1738007507154,-500.0,0.00010958,2]
[350630871,1738007507165,-495.81830879,0.00010958,2]
[350630872,1738007507175,-500.0,0.00010958,2]
[350630873,1738007507185,-500.0,0.00010958,2]
[350630874,1738007507196,-500.0,0.00010958,2]
[350630875,1738007507206,-500.0,0.00010958,2]
[350630876,1738007507216,-500.0,0.00010958,2]
[350630877,1738007507226,-500.0,0.00010958,2]
[350630878,1738007507236,-430.30630278,0.00010958,2]
[350630879,1738007507245,-500.0,0.00010958,2]
[350630880,1738007507255,-500.0,0.00010958,2]
[350630881,1738007507264,-500.0,0.00010958,2]
[350630882,1738007507274,-500.0,0.00010958,2]
[350630883,1738007507283,-500.0,0.00010958,2]
[350630884,1738007507292,-500.0,0.00010958,2]
[350630885,1738007507301,-500.0,0.00010958,2]
[350630886,1738007507311,-500.0,0.00010958,2]
[350630887,1738007507320,-500.0,0.00010958,2]
[350630888,1738007507330,-500.0,0.00010958,2]
[350630889,1738007507341,-500.0,0.00010958,2]
[350630890,1738007507350,-500.0,0.00010958,2]
[350630891,1738007507359,-500.0,0.00010958,2]
[350630892,1738007507369,-500.0,0.00010958,2]
[350630893,1738007507378,-500.0,0.00010958,2]
[350630894,1738007507387,-500.0,0.00010958,2]
[350630895,1738007507397,-500.0,0.00010958,2]
[350630896,1738007507406,-500.0,0.00010958,2]
[350630897,1738007507416,-500.0,0.00010958,2]
[350630898,1738007507425,-500.0,0.00010958,2]
[350630899,1738007507435,-500.0,0.00010958,2]
[350630900,1738007507445,-500.0,0.00010958,2]
[350630901,1738007507455,-500.0,0.00010958,2]
[350630902,1738007507464,-500.0,0.00010958,2]
[350630903,1738007507473,-500.0,0.00010958,2]
[350630904,1738007507482,-505.61582952,0.00010958,2]
[350630905,1738007507491,-500.0,0.00010958,2]
[350630906,1738007507501,-500.0,0.00010958,2]
[350630907,1738007507511,-500.0,0.00010958,2]
[350630908,1738007507521,-500.0,0.00010958,2]
[350630909,1738007507530,-500.0,0.00010958,2]
[350630910,1738007507540,-556.05,0.00010958,2]
[350630911,1738007507549,-500.0,0.00010958,2]
[350630912,1738007507559,-500.0,0.00010958,2]
[350630913,1738007507568,-500.0,0.00010958,2]
[350630914,1738007507578,-500.0,0.00010958,2]
[350630915,1738007507587,-500.0,0.00010958,2]
[350630916,1738007507597,-500.0,0.00010958,2]
[350630917,1738007507607,-500.0,0.00010958,2]
[350630918,1738007507617,-500.0,0.00010958,2]
[350630919,1738007507626,-500.0,0.00010958,2]
[350630920,1738007507636,-500.0,0.00010958,2]
[350630921,1738007507645,-500.0,0.00010958,2]
[350630922,1738007507655,-500.0,0.00010958,2]
[350630923,1738007507665,-500.0,0.00010958,2]
[350630924,1738007507675,-528.39930559,0.00010958,2]
[350630925,1738007507685,-500.0,0.00010958,2]
[350630926,1738007507695,-406.70271052,0.00010958,2]
[350630927,1738007507704,-500.0,0.00010958,2]
[350630928,1738007507714,-500.0,0.00010958,2]
[350630929,1738007507723,-500.0,0.00010958,2]
[350630930,1738007507733,-500.0,0.00010958,2]
[350630931,1738007507743,-424.34631206,0.00010958,2]
[350630932,1738007507753,-513.1016376,0.00010958,2]
[350630933,1738007507763,-500.0,0.00010958,2]
[350630934,1738007507773,-500.0,0.00010958,2]
[350630935,1738007507782,-500.0,0.00010958,2]
[350630936,1738007507792,-500.0,0.00010958,2]
[350630937,1738007507802,-500.0,0.00010958,2]
[350630938,1738007507811,-500.0,0.00010958,2]
[350630939,1738007507821,-500.0,0.00010958,2]
[350630940,1738007507831,-500.0,0.00010958,2]
[350630941,1738007507841,-500.0,0.00010958,2]
[350630942,1738007507850,-500.0,0.00010958,2]
[350630943,1738007507860,-500.0,0.00010958,2]
[350630944,1738007507870,-500.0,0.00010958,2]
[350630945,1738007507880,-575.89553776,0.00010958,2]
[350630946,1738007507890,-500.0,0.00010958,2]
[350630947,1738007507900,-490.0,0.00010958,2]
[350630948,1738007507909,-500.0,0.00010958,2]
[350630949,1738007507919,-500.0,0.00010958,2]
[350630950,1738007507928,-500.0,0.00010958,2]
[350630951,1738007507939,-585.20595857,0.00010958,2]
[350630952,1738007507949,-500.0,0.00010958,2]
[350630953,1738007507958,-500.0,0.00010958,2]
[350630954,1738007507967,-500.0,0.00010958,2]
[350630955,1738007507976,-500.0,0.00010958,2]
[350630956,1738007507986,-500.0,0.00010958,2]
[350630957,1738007507995,-500.0,0.00010958,2]
[350630958,1738007508005,-429.5102276,0.00010958,2]
[350630959,1738007508014,-500.0,0.00010958,2]
[350630960,1738007508023,-500.0,0.00010958,2]
[350630961,1738007508033,-500.0,0.00010958,2]
[350630962,1738007508042,-500.0,0.00010958,2]
[350630963,1738007508050,-500.0,0.00010958,2]
[350630964,1738007508059,-500.0,0.00010958,2]
[350630965,1738007508071,-500.0,0.00010958,2]
[350630966,1738007508080,-500.0,0.00010958,2]
[350630967,1738007508089,-935.39,0.00010958,2]
[350630968,1738007508099,-500.0,0.00010958,2]
[350630969,1738007508109,-500.0,0.00010958,2]
[350630970,1738007508122,-500.0,0.00010958,2]
[350630971,1738007508132,-500.0,0.00010958,2]
[350630972,1738007508141,-512.78586191,0.00010958,2]
[350630973,1738007508151,-500.0,0.00010958,2]
[350630974,1738007508160,-500.0,0.00010958,2]
[350630975,1738007508169,-935.39,0.00010958,2]
[350630976,1738007508179,-500.0,0.00010958,2]
[350630977,1738007508189,-500.0,0.00010958,2]
[350630978,1738007508199,-500.0,0.00010958,2]
[350630979,1738007508209,-500.0,0.00010958,2]
[350630980,1738007508218,-935.39,0.00010958,2]
[350630981,1738007508228,-500.0,0.00010958,2]
[350630982,1738007508237,-500.0,0.00010958,2]
[350630983,1738007508247,-500.0,0.00010958,2]
[350630984,1738007508257,-500.0,0.00010958,2]
[350630985,1738007508266,-582.58374254,0.00010958,2]
[350630986,1738007508275,-935.39,0.00010958,2]
[350630987,1738007508285,-500.0,0.00010958,2]
[350630988,1738007508294,-500.0,0.00010958,2]
[350630989,1738007508304,-500.0,0.00010958,2]
[350630990,1738007508313,-500.0,0.00010958,2]
[350630991,1738007508323,-935.39,0.00010958,2]
[350630992,1738007508332,-270.85150473,0.00010958,2]
[350630993,1738007508342,-500.0,0.00010958,2]
[350630994,1738007508351,-500.0,0.00010958,2]
[350630995,1738007508361,-500.0,0.00010958,2]
[350630996,1738007508370,-500.0,0.00010958,2]
[350630997,1738007508379,-500.0,0.00010958,2]
[350630998,1738007508388,-500.0,0.00010958,2]
[350630999,1738007508397,-500.0,0.00010958,2]
[350631000,1738007508406,-500.0,0.00010958,2]
[350631001,1738007508416,-935.39,0.00010958,2]
[350631002,1738007508425,-292.32860803,0.00010958,2]
[350631003,1738007508436,-500.0,0.00010958,2]
[350631004,1738007508445,-540.70731697,0.00010958,2]
[350631005,1738007508454,-935.39,0.00010958,2]
[350631006,1738007508464,-500.0,0.00010958,2]
[350631007,1738007508474,-935.39,0.00010958,2]
[350631008,1738007508484,-935.39,0.00010958,2]
[350631009,1738007508495,-935.39,0.00010958,2]
[350631010,1738007508504,-500.0,0.00010958,2]
[350631011,1738007508514,-500.0,0.00010958,2]
[350631012,1738007508523,-935.39,0.00010958,2]
[350631013,1738007508533,-500.0,0.00010958,2]
[350631014,1738007508542,-935.39,0.00010958,2]
[350631015,1738007508551,-500.0,0.00010958,2]
[350631016,1738007508561,-500.0,0.00010958,2]
[350631017,1738007508571,-500.0,0.00010958,2]
[350631018,1738007508581,-935.39,0.00010958,2]
[350631019,1738007508591,-500.0,0.00010958,2]
[350631020,1738007508601,-500.0,0.00010958,2]
[350631021,1738007508611,-500.0,0.00010958,2]
[350631022,1738007508621,-935.39,0.00010958,2]
[350631023,1738007508631,-500.0,0.00010958,2]
[350631024,1738007508641,-500.0,0.00010958,2]
[350631025,1738007508651,-500.0,0.00010958,2]
[350631026,1738007508661,-935.39,0.00010958,2]
[350631027,1738007508671,-500.0,0.00010958,2]
[350631028,1738007508681,-500.0,0.00010958,2]
[350631029,1738007508691,-500.0,0.00010958,2]
[350631030,1738007508700,-935.39,0.00010958,2]
[350631031,1738007508710,-500.0,0.00010958,2]
[350631032,1738007508720,-500.0,0.00010958,2]
[350631033,1738007508730,-500.0,0.00010958,2]
[350631034,1738007508740,-500.0,0.00010958,2]
[350631035,1738007508750,-935.39,0.00010958,2]
[350631036,1738007508895,-500.0,0.00010958,2]
[350631037,1738007508920,-500.0,0.00010958,2]
[350631038,1738007508931,-500.0,0.00010958,2]
[350631039,1738007508942,-500.0,0.00010958,2]
[350631040,1738007508952,-935.39,0.00010958,2]
[350631041,1738007508963,-500.0,0.00010958,2]
[350631042,1738007508973,-500.0,0.00010958,2]
[350631043,1738007508983,-500.0,0.00010958,2]
[350631044,1738007508993,-500.0,0.00010958,2]
[350631045,1738007509002,-935.39,0.00010958,2]
[350631046,1738007509012,-500.0,0.00010958,2]
[350631047,1738007509021,-500.0,0.00010958,2]
[350631048,1738007509032,-500.0,0.00010958,2]
[350631049,1738007509041,-500.0,0.00010958,2]
[350631050,1738007509051,-935.39,0.00010958,2]
[350631051,1738007509060,-500.0,0.00010958,2]
[350631052,1738007509070,-500.0,0.00010958,2]
[350631053,1738007509079,-500.0,0.00010958,2]
[350631054,1738007509089,-500.0,0.00010958,2]
[350631055,1738007509098,-935.39,0.00010958,2]
[350631056,1738007509108,-500.0,0.00010958,2]
[350631057,1738007509120,-177.88249187,0.00010958,2]
[350631058,1738007509130,-550.28594633,0.00010958,2]
[350631059,1738007509139,-500.0,0.00010958,2]
[350631060,1738007509149,-500.0,0.00010958,2]
[350631061,1738007509159,-935.39,0.00010958,2]
[350631062,1738007509168,-151.0,0.00010959,2]
[350631063,1738007509178,-150.0,0.00010959,2]
[350631064,1738007509189,-2080.68,0.00010959,2]
[350631065,1738007509200,-1511.01345294,0.00010969,2]
[350631066,1738007509210,-260.24,0.0001097,2]
[350631067,1738007509220,-500.0,0.00010973,2]
[350631068,1738007509229,-150.0,0.00010985,2]
[350631069,1738007509239,-486.8,0.00011,2]
[350631070,1738007509248,-1203.30370238,0.00011,2]
[350631071,1738007509258,-1511.01345294,0.00011003,2]
[350631072,1738007509267,-150.0,0.00011013,2]
[350631073,1738007509278,-418062.45697902,0.00011031,2]
[350631074,1738007509289,-1511.01345294,0.00011038,2]
[350631075,1738007509299,-150.0,0.0001104,2]
[350631076,1738007509309,-395.21978082,0.00011048,2]
[350631077,1738007509319,-201.19908191,0.00011068,2]
[350631078,1738007509331,-1511.01345294,0.00011072,2]
[350631079,1738007509341,-500.0,0.0001109,2]
[350631080,1738007509351,-71396.52489774,0.00011099,2]
[350631081,1738007509363,-155.46,0.000111,2]
[350631082,1738007509372,-1511.01345294,0.00011107,2]
[350631083,1738007509383,-521.0,0.0001111,2]
[350631084,1738007509393,-1000.0,0.00011113,2]
[350631085,1738007509403,-1511.01345294,0.00011141,2]
[350631086,1738007509414,-1511.01345294,0.00011176,2]
[350631087,1738007509424,-1511.01345294,0.0001121,2]
[350631088,1738007509435,-500.0,0.00011227,2]
[350631089,1738007509446,-1511.01345294,0.00011245,2]
[350631090,1738007509455,-1511.01345294,0.00011279,2]
[350631091,1738007509464,-1511.01345294,0.00011314,2]
[350631092,1738007509474,-3905.0,0.00011316,2]
[350631093,1738007509484,-150.0,0.00011316,2]
[350631094,1738007509493,-1106.0,0.00011316,2]
[350631095,1738007509503,-2323.1915358,0.00011327,2]
[350631096,1738007509512,-241.14386773,0.00011327,2]
[350631097,1738007509521,-395.21978082,0.00011338,2]
[350631098,1738007509531,-260.23681267,0.0001134,2]
[350631099,1738007509541,-1511.01345294,0.00011348,2]
[350631100,1738007509550,-500.0,0.00011364,2]
[350631101,1738007509560,-1511.01345294,0.00011383,2]
[350631102,1738007509569,-1511.01345294,0.00011417,2]
[350631103,1738007509579,-1511.01345294,0.00011452,2]
[350631104,1738007509589,-1511.01345294,0.00011486,2]
[350631105,1738007509598,-521.0,0.0001149,2]
[350631106,1738007509607,-500.0,0.00011501,2]
[350631107,1738007509617,-1511.01345294,0.00011521,2]
[350631108,1738007509626,-150.31,0.00011533,2]
[350631109,1738007509635,-1511.01345294,0.00011555,2]
[350631110,1738007509645,-1511.01345294,0.0001159,2]
[350631111,1738007509654,-9026.87198635,0.000116,2]
[350631112,1738007509663,-155.47,0.000116,2]
[350631113,1738007509672,-1511.01345294,0.00011624,2]
[350631114,1738007509683,-500.0,0.00011638,2]
[350631115,1738007509692,-1511.01345294,0.00011659,2]
[350631116,1738007509701,-1511.01345294,0.00011693,2]
[350631117,1738007509710,-1511.01345294,0.00011728,2]
[350631118,1738007509720,-1511.01345294,0.00011762,2]
[350631119,1738007509729,-500.0,0.00011775,2]
[350631120,1738007509739,-1511.01345294,0.00011797,2]
[350631121,1738007509750,-300.0,0.000118,4]
[350631122,1738007509759,-2323.1915358,0.000118,2]
[350631123,1738007509768,-241.14386773,0.000118,2]
[350631124,1738007509777,-252.31267463,0.00011825,2]
[350631125,1738007509787,-84567.95562547,0.00011827,2]
[350631126,1738007509795,-17806.82199611,0.00011827,2]
[350631127,1738007509808,-483.07941724,0.00011829,2]
[350631128,1738007509817,-1511.01345294,0.00011831,2]
[350631129,1738007509826,-1007.96492072,0.00011834,2]
[350631130,1738007509836,-7892.02921182,0.00011834,2]
[350631131,1738007509845,-1115.1693078,0.00011835,2]
[350631132,1738007509854,-4528.77133073,0.00011837,2]
[350631133,1738007509863,-7892.02921182,0.00011838,2]
[350631134,1738007509873,-1007.96492072,0.00011839,2]
[350631135,1738007509882,-4528.77133073,0.00011839,2]
[350631136,1738007509891,-4528.77133073,0.00011843,2]
[350631137,1738007509900,-1007.96492072,0.00011844,2]
[350631138,1738007509910,-17806.82199611,0.00011845,2]
[350631139,1738007509919,-17806.82199611,0.00011849,2]
[350631140,1738007509928,-15129.07864553,0.0001185,2]
[350631141,1738007509938,-200.0,0.0001185,2]
[350631142,1738007509947,-288.62356082,0.00011851,2]
[350631143,1738007509956,-1115.1693078,0.00011854,2]
[350631144,1738007509966,-169.18,0.00011854,2]
[350631145,1738007509975,-485.88838499,0.00011855,2]
[350631146,1738007509985,-493.38724271,0.00011856,2]
[350631147,1738007509994,-493.38724271,0.00011856,2]
[350631148,1738007510003,-12747.10931641,0.00011856,2]
[350631149,1738007510012,-493.38724271,0.00011858,2]
[350631150,1738007510021,-288.62356082,0.00011862,2]
[350631151,1738007510031,-252.31267463,0.00011865,2]
[350631152,1738007510040,-84567.95562547,0.00011866,2]
[350631153,1738007510048,-1511.01345294,0.00011866,2]
[350631154,1738007510057,-200.0,0.00011868,2]
[350631155,1738007510066,-6175.38274472,0.0001187,2]
[350631156,1738007510075,-521.0,0.0001187,2]
[350631157,1738007510085,-6175.38274472,0.0001187,2]
[350631158,1738007510094,-485.88838499,0.00011872,2]
[350631159,1738007510102,-288.62356082,0.00011872,2]
[350631160,1738007510112,-6175.38274472,0.00011873,2]
[350631161,1738007510124,-288.62356082,0.00011874,2]
[350631162,1738007510133,-12747.10931641,0.00011874,2]
[350631163,1738007510142,-17806.82199611,0.00011874,2]
[350631164,1738007510150,-485.88838499,0.00011875,2]
[350631165,1738007510159,-6175.38274472,0.00011876,2]
[350631166,1738007510169,-1115.1693078,0.00011876,2]
[350631167,1738007510177,-84567.95562547,0.00011876,2]
[350631168,1738007510187,-1007.96492072,0.00011877,2]
[350631169,1738007510196,-4528.77133073,0.00011878,2]
[350631170,1738007510205,-218409.23689013,0.0001188,2]
[350631171,1738007510214,-15129.07864553,0.00011881,2]
[350631172,1738007510223,-493.38724271,0.00011882,2]
[350631173,1738007510232,-483.07941724,0.00011883,2]
[350631174,1738007510241,-7892.02921182,0.00011884,2]
[350631175,1738007510251,-6175.38274472,0.00011885,2]
[350631176,1738007510260,-288.62356082,0.00011886,2]
[350631177,1738007510269,-12747.10931641,0.00011887,2]
[350631178,1738007510278,-252.31267463,0.00011888,2]
[350631179,1738007510287,-84567.95562547,0.00011889,2]
[350631180,1738007510297,-500.0,0.0001189,2]
[350631181,1738007510306,-252.31267463,0.00011892,2]
[350631182,1738007510315,-485.88838499,0.00011893,2]
[350631183,1738007510324,-15129.07864553,0.00011894,2]
[350631184,1738007510333,-7892.02921182,0.00011895,2]
[350631185,1738007510342,-483.07941724,0.00011895,2]
[350631186,1738007510352,-1115.1693078,0.00011899,2]
[350631187,1738007510361,-500.0,0.00011899,2]
[350631188,1738007510370,-500.0,0.00011899,2]
[350631189,1738007510379,-500.0,0.00011899,2]
[350631190,1738007510388,-500.0,0.00011899,2]
[350631191,1738007510397,-500.0,0.00011899,2]
[350631192,1738007510406,-500.0,0.00011899,2]
[350631193,1738007510415,-638.1286645,0.00011899,2]
[350631194,1738007510424,-352850.15209601,0.000119,2]
[350631195,1738007510435,-500000.0,0.000119,2]
[350631196,1738007510444,-479.0,0.000119,2]
[350631197,1738007510453,-646.0,0.000119,2]
[350631198,1738007510462,-1000.0,0.000119,3]
[350631199,1738007510470,-1000.0,0.000119,3]
[350631200,1738007510479,-2006.1937,0.000119,2]
[350631201,1738007510488,-2000.0,0.000119,2]
[350631202,1738007510497,-2000.0,0.000119,2]
[350631203,1738007510506,-2000.0,0.000119,2]
[350631204,1738007510515,-2000.0,0.000119,2]
[350631205,1738007510524,-5430244.27979908,0.000119,2]
[350631206,1738007510533,-150.0,0.000119,2]
[350631207,1738007510542,-10899.17125058,0.000119,2]
[350631208,1738007510551,-628.0,0.000119,4]
[350631209,1738007510560,-150.0,0.000119,2]
[350631210,1738007510569,-9253.77148233,0.000119,2]
[350631211,1738007510578,-181.35692948,0.000119,2]
[350631212,1738007510587,-1511.01345294,0.000119,2]
[350631213,1738007510595,-7497.35381424,0.000119,2]
[350631214,1738007510604,-445.58359524,0.00011901,2]
[350631215,1738007510613,-12747.10931641,0.00011901,2]
[350631216,1738007510622,-312.82567887,0.00011902,2]
[350631217,1738007510631,-760.79679504,0.00011902,2]
[350631218,1738007510640,-200.0,0.00011902,2]
[350631219,1738007510649,-483.07941724,0.00011902,2]
[350631220,1738007510658,-485.88838499,0.00011902,2]
[350631221,1738007510667,-397.50735891,0.00011903,2]
[350631222,1738007510676,-4067.9485514,0.00011903,2]
[350631223,1738007510686,-397.50735891,0.00011903,2]
[350631224,1738007510695,-1132.70916753,0.00011903,2]
[350631225,1738007510703,-4067.9485514,0.00011904,2]
[350631226,1738007510713,-7497.35381424,0.00011904,2]
[350631227,1738007510722,-2086.67218868,0.00011904,2]
[350631228,1738007510731,-134283.2701998,0.00011904,2]
[350631229,1738007510739,-200.0,0.00011905,2]
[350631230,1738007510749,-844.99109176,0.00011905,2]
[350631231,1738007510758,-200.0,0.00011905,2]
[350631232,1738007510767,-7548.47191611,0.00011906,2]
[350631233,1738007510776,-15129.07864553,0.00011906,2]
[350631234,1738007510785,-38792.64286343,0.00011906,2]
[350631235,1738007510794,-2517.5894521,0.00011906,2]
[350631236,1738007510803,-257.19918669,0.00011907,2]
[350631237,1738007510812,-4528.77133073,0.00011907,2]
[350631238,1738007510821,-2323.46813687,0.00011907,2]